[Event "Titled Tuesday Blitz August 22 Early 2023"]
[White "Yanchenko, Roman"]
[Black "Al-Tarboush, Ward"]
[WhiteFideId "4137329"]
[BlackFideId "7601450"]
[WhiteElo "2818"]
[BlackElo "2529"]
[Result "1-0"]
[Round "4"]
[TimeControl "180+1"]
[Date "2023.08.22"]
[WhiteClock "0:00:30"]
[BlackClock "0:00:46"]
[Board "40"]

1. d4 {[%clk 0:03:00]}  d5 {[%clk 0:02:59]} 2. Nf3 {[%clk 0:03:01]}  Nf6 {[%clk 0:02:59]} 3. Bf4 {[%clk 0:03:01]}  c5 {[%clk 0:02:59]} 4. e3 {[%clk 0:03:01]}  Nc6 {[%clk 0:03:00]} 5. Be2 {[%clk 0:02:59]}  Bf5 {[%clk 0:02:57]} 6. O-O {[%clk 0:02:58]}  e6 {[%clk 0:02:57]} 7. a3 {[%clk 0:02:58]}  Bd6 {[%clk 0:02:58]} 8. dxc5 {[%clk 0:02:57]}  Bxc5 {[%clk 0:02:58]} 9. b4 {[%clk 0:02:58]}  Bd6 {[%clk 0:02:58]} 10. Bxd6 {[%clk 0:02:57]}  Qxd6 {[%clk 0:02:59]} 11. c4 {[%clk 0:02:57]}  O-O {[%clk 0:02:53]} 12. Nc3 {[%clk 0:02:58]}  Rad8 {[%clk 0:02:46]} 13. c5 {[%clk 0:02:12]}  Qc7 {[%clk 0:02:44]} 14. Nd4 {[%clk 0:02:12]}  Bg6 {[%clk 0:02:40]} 15. Ndb5 {[%clk 0:02:11]}  Qb8 {[%clk 0:02:40]} 16. Nd6 {[%clk 0:02:10]}  Ne8 {[%clk 0:02:39]} 17. Ncb5 {[%clk 0:02:09]}  Nxd6 {[%clk 0:02:33]} 18. Nxd6 {[%clk 0:02:08]}  a6 {[%clk 0:02:31]} 19. Rc1 {[%clk 0:02:04]}  b5 {[%clk 0:02:26]} 20. f4 {[%clk 0:01:57]}  Be4 {[%clk 0:02:23]} 21. Qb3 {[%clk 0:01:43]}  f5 {[%clk 0:02:19]} 22. Nxe4 {[%clk 0:01:29]}  fxe4 {[%clk 0:02:19]} 23. Bg4 {[%clk 0:01:29]}  Rf6 {[%clk 0:02:17]} 24. Rcd1 {[%clk 0:01:28]}  Qc7 {[%clk 0:02:15]} 25. Rd2 {[%clk 0:01:17]}  Rdf8 {[%clk 0:02:14]} 26. a4 {[%clk 0:01:05]}  g5 {[%clk 0:02:12]} 27. axb5 {[%clk 0:01:00]}  axb5 {[%clk 0:02:12]} 28. f5 {[%clk 0:00:59]}  Ne5 {[%clk 0:02:04]} 29. h3 {[%clk 0:00:58]}  Nc4 {[%clk 0:02:02]} 30. Rdf2 {[%clk 0:00:56]}  Qg3 {[%clk 0:02:00]} 31. c6 {[%clk 0:00:30]}  Qxe3 {[%clk 0:01:51]} 32. Qxe3 {[%clk 0:00:30]}  Nxe3 {[%clk 0:01:52]} 33. fxe6 {[%clk 0:00:30]}  Nxg4 {[%clk 0:00:56]} 34. hxg4 {[%clk 0:00:30]}  Rxf2 {[%clk 0:00:56]} 35. Rxf2 {[%clk 0:00:31]}  Rc8 {[%clk 0:00:56]} 36. e7 {[%clk 0:00:31]}  e3 {[%clk 0:00:55]} 37. Rf8+ {[%clk 0:00:29]}  Rxf8 {[%clk 0:00:50]} 38. exf8=Q+ {[%clk 0:00:30]}  Kxf8 {[%clk 0:00:46]} 39. c7 {[%clk 0:00:30]} 1-0


[Site "https://www.chess.com"]

[Event "Titled Tuesday Blitz August 22 Early 2023"]
[White "Sanduleac, Vasile"]
[Black "Bauman_Guy"]
[WhiteFideId "13900161"]
[WhiteElo "2515"]
[BlackElo "2809"]
[Result "0-1"]
[Round "4"]
[TimeControl "180+1"]
[Date "2023.08.22"]
[WhiteClock "0:02:06"]
[BlackClock "0:02:29"]
[Board "41"]

1. e4 {[%clk 0:02:58]}  c5 {[%clk 0:03:00]} 2. Nf3 {[%clk 0:02:58]}  d6 {[%clk 0:03:00]} 3. Bb5+ {[%clk 0:02:57]}  Nd7 {[%clk 0:03:00]} 4. O-O {[%clk 0:02:57]}  a6 {[%clk 0:03:00]} 5. Bxd7+ {[%clk 0:02:57]}  Qxd7 {[%clk 0:03:01]} 6. d4 {[%clk 0:02:56]}  cxd4 {[%clk 0:03:01]} 7. Qxd4 {[%clk 0:02:57]}  e5 {[%clk 0:03:02]} 8. Qd3 {[%clk 0:02:57]}  Qc6 {[%clk 0:03:01]} 9. c4 {[%clk 0:02:53]}  Be6 {[%clk 0:03:00]} 10. b3 {[%clk 0:02:53]}  b5 {[%clk 0:02:55]} 11. Nbd2 {[%clk 0:02:53]}  Nf6 {[%clk 0:02:53]} 12. Ba3 {[%clk 0:02:50]}  bxc4 {[%clk 0:02:47]} 13. bxc4 {[%clk 0:02:48]}  Be7 {[%clk 0:02:47]} 14. Rac1 {[%clk 0:02:46]}  Nd7 {[%clk 0:02:45]} 15. Nb3 {[%clk 0:02:32]}  f6 {[%clk 0:02:42]} 16. Rfd1 {[%clk 0:02:32]}  Nc5 {[%clk 0:02:42]} 17. Nxc5 {[%clk 0:02:22]}  dxc5 {[%clk 0:02:43]} 18. Ne1 {[%clk 0:02:21]}  O-O {[%clk 0:02:42]} 19. Nc2 {[%clk 0:02:19]}  Rfd8 {[%clk 0:02:42]} 20. Qe2 {[%clk 0:02:17]}  Qa4 {[%clk 0:02:39]} 21. Rxd8+ {[%clk 0:02:15]}  Rxd8 {[%clk 0:02:40]} 22. Qe3 {[%clk 0:02:06]}  Qxc2 {[%clk 0:02:29]} 0-1


[Site "https://www.chess.com"]

[Event "Titled Tuesday Blitz August 22 Early 2023"]
[White "Astafurov, Arseniy"]
[Black "Lei, Tingjie"]
[WhiteFideId "24175218"]
[BlackFideId "8605114"]
[WhiteElo "2431"]
[BlackElo "2790"]
[Result "0-1"]
[Round "4"]
[TimeControl "180+1"]
[Date "2023.08.22"]
[WhiteClock "0:00:17"]
[BlackClock "0:00:19"]
[Board "42"]

1. c4 {[%clk 0:03:00]}  c5 {[%clk 0:02:56]} 2. Nc3 {[%clk 0:02:59]}  Nc6 {[%clk 0:02:56]} 3. Nf3 {[%clk 0:02:59]}  g6 {[%clk 0:02:55]} 4. e3 {[%clk 0:02:59]}  Nf6 {[%clk 0:02:52]} 5. d4 {[%clk 0:02:59]}  cxd4 {[%clk 0:02:52]} 6. exd4 {[%clk 0:03:00]}  d5 {[%clk 0:02:53]} 7. cxd5 {[%clk 0:03:00]}  Nxd5 {[%clk 0:02:53]} 8. Qb3 {[%clk 0:03:00]}  Nxc3 {[%clk 0:02:52]} 9. Bc4 {[%clk 0:03:00]}  Nd5 {[%clk 0:02:52]} 10. Bxd5 {[%clk 0:03:00]}  e6 {[%clk 0:02:52]} 11. Bxc6+ {[%clk 0:03:00]}  bxc6 {[%clk 0:02:52]} 12. O-O {[%clk 0:02:58]}  Bg7 {[%clk 0:02:42]} 13. Be3 {[%clk 0:02:58]}  O-O {[%clk 0:02:40]} 14. Rfc1 {[%clk 0:02:58]}  a5 {[%clk 0:01:55]} 15. Nd2 {[%clk 0:02:39]}  a4 {[%clk 0:01:50]} 16. Qc3 {[%clk 0:02:37]}  Rb8 {[%clk 0:01:36]} 17. Ne4 {[%clk 0:02:28]}  Qd5 {[%clk 0:01:27]} 18. Nc5 {[%clk 0:02:28]}  e5 {[%clk 0:01:22]} 19. Qc4 {[%clk 0:01:44]}  exd4 {[%clk 0:01:19]} 20. Qxd5 {[%clk 0:01:28]}  cxd5 {[%clk 0:01:18]} 21. Bf4 {[%clk 0:01:26]}  Rxb2 {[%clk 0:01:15]} 22. Nxa4 {[%clk 0:01:23]}  Re2 {[%clk 0:01:05]} 23. Rd1 {[%clk 0:00:57]}  d3 {[%clk 0:00:58]} 24. Rac1 {[%clk 0:00:56]}  Rxa2 {[%clk 0:00:51]} 25. Nb6 {[%clk 0:00:56]}  Bf5 {[%clk 0:00:46]} 26. Nxd5 {[%clk 0:00:48]}  Re8 {[%clk 0:00:44]} 27. Ne3 {[%clk 0:00:45]}  d2 {[%clk 0:00:29]} 28. Rc6 {[%clk 0:00:31]}  Be6 {[%clk 0:00:20]} 29. Rd6 {[%clk 0:00:25]}  Bc3 {[%clk 0:00:18]} 30. Nd5 {[%clk 0:00:20]}  Bxd5 {[%clk 0:00:18]} 31. Rxd5 {[%clk 0:00:17]}  Re1+ {[%clk 0:00:19]} 0-1


[Site "https://www.chess.com"]

[Event "Titled Tuesday Blitz August 22 Early 2023"]
[White "Bagrationi, Alexander"]
[Black "Sarana, Alexey"]
[WhiteFideId "14104954"]
[BlackFideId "24133795"]
[WhiteElo "2595"]
[BlackElo "3024"]
[Result "0-1"]
[Round "4"]
[TimeControl "180+1"]
[Date "2023.08.22"]
[WhiteClock "0:00:17"]
[BlackClock "0:01:16"]
[Board "43"]

1. d4 {[%clk 0:02:45]}  Nf6 {[%clk 0:02:57]} 2. Nf3 {[%clk 0:02:43]}  d5 {[%clk 0:02:57]} 3. g3 {[%clk 0:02:43]}  c6 {[%clk 0:02:56]} 4. Bg2 {[%clk 0:02:43]}  Bf5 {[%clk 0:02:56]} 5. O-O {[%clk 0:02:44]}  h6 {[%clk 0:02:56]} 6. c3 {[%clk 0:02:44]}  e6 {[%clk 0:02:57]} 7. Bf4 {[%clk 0:02:44]}  Nbd7 {[%clk 0:02:57]} 8. Nbd2 {[%clk 0:02:43]}  Be7 {[%clk 0:02:57]} 9. a4 {[%clk 0:02:43]}  g5 {[%clk 0:02:56]} 10. Be5 {[%clk 0:02:39]}  Nxe5 {[%clk 0:02:55]} 11. Nxe5 {[%clk 0:02:39]}  Bd6 {[%clk 0:02:53]} 12. Nd3 {[%clk 0:02:37]}  h5 {[%clk 0:02:48]} 13. Re1 {[%clk 0:02:25]}  Bxd3 {[%clk 0:02:38]} 14. exd3 {[%clk 0:02:25]}  g4 {[%clk 0:02:35]} 15. b4 {[%clk 0:02:22]}  h4 {[%clk 0:02:33]} 16. a5 {[%clk 0:02:12]}  a6 {[%clk 0:02:31]} 17. Nf1 {[%clk 0:02:03]}  Kd7 {[%clk 0:02:29]} 18. Qd2 {[%clk 0:01:54]}  Qg8 {[%clk 0:02:28]} 19. c4 {[%clk 0:01:42]}  hxg3 {[%clk 0:02:26]} 20. fxg3 {[%clk 0:01:42]}  Qg6 {[%clk 0:02:24]} 21. c5 {[%clk 0:01:39]}  Bc7 {[%clk 0:02:23]} 22. Re2 {[%clk 0:01:35]}  Rh7 {[%clk 0:02:16]} 23. Rf2 {[%clk 0:01:34]}  Rah8 {[%clk 0:02:17]} 24. Re1 {[%clk 0:01:33]}  Nh5 {[%clk 0:02:16]} 25. Re5 {[%clk 0:01:23]}  f6 {[%clk 0:01:46]} 26. Re3 {[%clk 0:01:17]}  f5 {[%clk 0:01:46]} 27. Re5 {[%clk 0:01:11]}  Bxe5 {[%clk 0:01:40]} 28. dxe5 {[%clk 0:01:11]}  f4 {[%clk 0:01:40]} 29. gxf4 {[%clk 0:01:08]}  g3 {[%clk 0:01:40]} 30. Rf3 {[%clk 0:01:04]}  gxh2+ {[%clk 0:01:40]} 31. Kh1 {[%clk 0:01:04]}  Rg7 {[%clk 0:01:32]} 32. d4 {[%clk 0:00:44]}  Nxf4 {[%clk 0:01:19]} 33. Rxf4 {[%clk 0:00:30]}  Qxg2+ {[%clk 0:01:18]} 34. Qxg2 {[%clk 0:00:31]}  Rxg2 {[%clk 0:01:18]} 35. Rf7+ {[%clk 0:00:17]}  Ke8 {[%clk 0:01:16]} 0-1


[Site "https://www.chess.com"]

[Event "Titled Tuesday Blitz August 22 Early 2023"]
[White "Sadzikowski, Daniel"]
[Black "Shimanov, Aleksandr"]
[WhiteFideId "1132253"]
[BlackFideId "4198603"]
[WhiteElo "2587"]
[BlackElo "2953"]
[Result "1-0"]
[Round "4"]
[TimeControl "180+1"]
[Date "2023.08.22"]
[WhiteClock "0:00:09"]
[BlackClock "0:00:05"]
[Board "45"]

1. e4 {[%clk 0:03:00]}  c6 {[%clk 0:02:58]} 2. d4 {[%clk 0:02:59]}  d5 {[%clk 0:02:59]} 3. exd5 {[%clk 0:02:59]}  cxd5 {[%clk 0:02:59]} 4. Bd3 {[%clk 0:03:00]}  Nf6 {[%clk 0:03:00]} 5. h3 {[%clk 0:03:00]}  Nc6 {[%clk 0:02:59]} 6. c3 {[%clk 0:02:59]}  g6 {[%clk 0:02:59]} 7. Bf4 {[%clk 0:02:56]}  a6 {[%clk 0:02:57]} 8. Nf3 {[%clk 0:02:56]}  Bf5 {[%clk 0:02:57]} 9. Be2 {[%clk 0:02:45]}  h6 {[%clk 0:02:53]} 10. Nbd2 {[%clk 0:02:44]}  g5 {[%clk 0:02:52]} 11. Bg3 {[%clk 0:02:42]}  e6 {[%clk 0:02:52]} 12. Ne5 {[%clk 0:02:38]}  Bd6 {[%clk 0:02:42]} 13. Nxc6 {[%clk 0:02:18]}  bxc6 {[%clk 0:02:41]} 14. Qa4 {[%clk 0:02:08]}  Qc7 {[%clk 0:02:35]} 15. Bxd6 {[%clk 0:02:01]}  Qxd6 {[%clk 0:02:36]} 16. Nb3 {[%clk 0:02:00]}  Kf8 {[%clk 0:02:31]} 17. Qb4 {[%clk 0:02:00]}  Ke7 {[%clk 0:02:22]} 18. Na5 {[%clk 0:01:51]}  Rhc8 {[%clk 0:02:15]} 19. g4 {[%clk 0:01:44]}  Bg6 {[%clk 0:02:12]} 20. Qxd6+ {[%clk 0:01:39]}  Kxd6 {[%clk 0:02:11]} 21. b4 {[%clk 0:01:32]}  Ne4 {[%clk 0:02:01]} 22. Rc1 {[%clk 0:01:31]}  Kc7 {[%clk 0:02:00]} 23. Rh2 {[%clk 0:01:22]}  f6 {[%clk 0:01:56]} 24. f3 {[%clk 0:01:22]}  Nd6 {[%clk 0:01:56]} 25. h4 {[%clk 0:01:16]}  Nf7 {[%clk 0:01:42]} 26. Kd2 {[%clk 0:01:14]}  Kb6 {[%clk 0:01:41]} 27. Bd3 {[%clk 0:01:12]}  Bxd3 {[%clk 0:01:38]} 28. Kxd3 {[%clk 0:01:13]}  Rf8 {[%clk 0:01:17]} 29. c4 {[%clk 0:00:57]}  dxc4+ {[%clk 0:01:12]} 30. Rxc4 {[%clk 0:00:56]}  Rac8 {[%clk 0:01:08]} 31. hxg5 {[%clk 0:00:54]}  hxg5 {[%clk 0:01:09]} 32. Rc5 {[%clk 0:00:41]}  Rh8 {[%clk 0:00:57]} 33. Rxh8 {[%clk 0:00:41]}  Nxh8 {[%clk 0:00:58]} 34. a4 {[%clk 0:00:39]}  Ng6 {[%clk 0:00:52]} 35. Nc4+ {[%clk 0:00:37]}  Kc7 {[%clk 0:00:31]} 36. b5 {[%clk 0:00:38]}  axb5 {[%clk 0:00:31]} 37. axb5 {[%clk 0:00:38]}  Nf4+ {[%clk 0:00:32]} 38. Ke4 {[%clk 0:00:36]}  Rb8 {[%clk 0:00:25]} 39. Rxc6+ {[%clk 0:00:35]}  Kd7 {[%clk 0:00:25]} 40. Rd6+ {[%clk 0:00:24]}  Ke7 {[%clk 0:00:25]} 41. Rb6 {[%clk 0:00:24]}  Rd8 {[%clk 0:00:19]} 42. Rb7+ {[%clk 0:00:23]}  Ke8 {[%clk 0:00:19]} 43. b6 {[%clk 0:00:20]}  Ne2 {[%clk 0:00:20]} 44. Rh7 {[%clk 0:00:16]}  f5+ {[%clk 0:00:04]} 45. gxf5 {[%clk 0:00:15]}  exf5+ {[%clk 0:00:05]} 46. Kxf5 {[%clk 0:00:12]}  Rxd4 {[%clk 0:00:05]} 47. b7 {[%clk 0:00:10]}  Rd5+ {[%clk 0:00:05]} 48. Ke6 {[%clk 0:00:09]} 1-0


[Site "https://www.chess.com"]

[Event "Titled Tuesday Blitz August 22 Early 2023"]
[White "Ezat, Mohamed"]
[Black "Terry, Renato"]
[WhiteFideId "10600906"]
[BlackFideId "3803457"]
[WhiteElo "2581"]
[BlackElo "2942"]
[Result "0-1"]
[Round "4"]
[TimeControl "180+1"]
[Date "2023.08.22"]
[WhiteClock "0:00:04"]
[BlackClock "0:00:21"]
[Board "46"]

1. d4 {[%clk 0:02:52]}  e6 {[%clk 0:02:59]} 2. c4 {[%clk 0:02:52]}  Bb4+ {[%clk 0:02:59]} 3. Bd2 {[%clk 0:02:52]}  Qe7 {[%clk 0:02:57]} 4. g3 {[%clk 0:02:40]}  Nf6 {[%clk 0:02:57]} 5. Nc3 {[%clk 0:02:39]}  O-O {[%clk 0:02:57]} 6. Bg2 {[%clk 0:02:38]}  d6 {[%clk 0:02:56]} 7. Nf3 {[%clk 0:02:38]}  c5 {[%clk 0:02:47]} 8. O-O {[%clk 0:02:19]}  Nc6 {[%clk 0:02:31]} 9. a3 {[%clk 0:02:18]}  Ba5 {[%clk 0:02:30]} 10. dxc5 {[%clk 0:01:53]}  dxc5 {[%clk 0:02:29]} 11. Qc2 {[%clk 0:01:50]}  Bc7 {[%clk 0:01:58]} 12. e3 {[%clk 0:01:44]}  Bd7 {[%clk 0:01:51]} 13. Rad1 {[%clk 0:01:42]}  Rad8 {[%clk 0:01:50]} 14. Nb5 {[%clk 0:01:02]}  Bb8 {[%clk 0:01:50]} 15. Bc3 {[%clk 0:00:58]}  Ne8 {[%clk 0:01:41]} 16. Be1 {[%clk 0:00:52]}  f5 {[%clk 0:01:33]} 17. Nc3 {[%clk 0:00:38]}  Nf6 {[%clk 0:01:31]} 18. e4 {[%clk 0:00:29]}  f4 {[%clk 0:01:30]} 19. Ne2 {[%clk 0:00:21]}  e5 {[%clk 0:01:12]} 20. Nc3 {[%clk 0:00:14]}  Nd4 {[%clk 0:01:12]} 21. Nxd4 {[%clk 0:00:13]}  exd4 {[%clk 0:01:13]} 22. Nd5 {[%clk 0:00:13]}  Nxd5 {[%clk 0:01:14]} 23. exd5 {[%clk 0:00:14]}  f3 {[%clk 0:01:15]} 24. Bh1 {[%clk 0:00:13]}  Bh3 {[%clk 0:01:04]} 25. Bd2 {[%clk 0:00:13]}  Bxf1 {[%clk 0:01:00]} 26. Rxf1 {[%clk 0:00:13]}  Rde8 {[%clk 0:01:01]} 27. Qb3 {[%clk 0:00:12]}  Qe2 {[%clk 0:00:56]} 28. Bc1 {[%clk 0:00:10]}  Re7 {[%clk 0:00:50]} 29. Bg5 {[%clk 0:00:09]}  Ree8 {[%clk 0:00:45]} 30. Qxb7 {[%clk 0:00:08]}  h6 {[%clk 0:00:29]} 31. Bc1 {[%clk 0:00:07]}  Bd6 {[%clk 0:00:25]} 32. Qc6 {[%clk 0:00:07]}  Rd8 {[%clk 0:00:25]} 33. b4 {[%clk 0:00:04]}  Qxc4 {[%clk 0:00:24]} 34. bxc5 {[%clk 0:00:03]}  Qxc5 {[%clk 0:00:22]} 35. Rd1 {[%clk 0:00:02]}  Rc8 {[%clk 0:00:20]} 36. Qa6 {[%clk 0:00:01]}  Qxc1 {[%clk 0:00:19]} 37. Rxc1 {[%clk 0:00:01]}  Rxc1+ {[%clk 0:00:19]} 38. Qf1 {[%clk 0:00:02]}  Bxa3 {[%clk 0:00:18]} 39. Bxf3 {[%clk 0:00:01]}  Rxf3 {[%clk 0:00:18]} 40. Kg2 {[%clk 0:00:02]}  Rxf1 {[%clk 0:00:18]} 41. Kxf3 {[%clk 0:00:02]}  d3 {[%clk 0:00:18]} 42. Ke3 {[%clk 0:00:02]}  Rd1 {[%clk 0:00:18]} 43. d6 {[%clk 0:00:02]}  Bc5+ {[%clk 0:00:18]} 44. Ke4 {[%clk 0:00:01]}  Bxd6 {[%clk 0:00:18]} 45. Ke3 {[%clk 0:00:02]}  Bc5+ {[%clk 0:00:18]} 46. Ke4 {[%clk 0:00:03]}  d2 {[%clk 0:00:18]} 47. g4 {[%clk 0:00:03]}  Bb4 {[%clk 0:00:19]} 48. Kf3 {[%clk 0:00:03]}  Re1 {[%clk 0:00:20]} 49. Kg2 {[%clk 0:00:04]}  d1=Q {[%clk 0:00:21]} 50. g5 {[%clk 0:00:04]}  Qg4# {[%clk 0:00:21]} 0-1


[Site "https://www.chess.com"]

[Event "Titled Tuesday Blitz August 22 Early 2023"]
[White "Golubev, Mikhail"]
[Black "Zakhartsov, Vladimir"]
[WhiteFideId "14100983"]
[BlackFideId "4145097"]
[WhiteElo "2579"]
[BlackElo "2909"]
[Result "0-1"]
[Round "4"]
[TimeControl "180+1"]
[Date "2023.08.22"]
[WhiteClock "0:00:00"]
[BlackClock "0:01:27"]
[Board "47"]

1. e4 {[%clk 0:03:00]}  e5 {[%clk 0:02:57]} 2. Nf3 {[%clk 0:03:00]}  Nc6 {[%clk 0:02:56]} 3. Bc4 {[%clk 0:03:01]}  d6 {[%clk 0:02:50]} 4. d4 {[%clk 0:02:58]}  Qf6 {[%clk 0:02:35]} 5. Nc3 {[%clk 0:02:47]}  exd4 {[%clk 0:02:26]} 6. Bg5 {[%clk 0:01:59]}  Qg6 {[%clk 0:02:22]} 7. Nd5 {[%clk 0:01:59]}  Qxe4+ {[%clk 0:02:14]} 8. Kd2 {[%clk 0:01:58]}  Kd7 {[%clk 0:02:07]} 9. Re1 {[%clk 0:01:47]}  Qf5 {[%clk 0:02:06]} 10. g4 {[%clk 0:00:49]}  Qxg4 {[%clk 0:01:59]} 11. Qe2 {[%clk 0:00:49]}  Nge7 {[%clk 0:01:48]} 12. Nxe7 {[%clk 0:00:33]}  Bxe7 {[%clk 0:01:46]} 13. Ne5+ {[%clk 0:00:19]}  Nxe5 {[%clk 0:01:40]} 14. Qxg4+ {[%clk 0:00:19]}  Nxg4 {[%clk 0:01:41]} 15. Bb5+ {[%clk 0:00:17]}  c6 {[%clk 0:01:32]} 16. Rxe7+ {[%clk 0:00:17]}  Kd8 {[%clk 0:01:33]} 17. Rxf7+ {[%clk 0:00:09]}  Ke8 {[%clk 0:01:32]} 18. Re7+ {[%clk 0:00:09]}  Kf8 {[%clk 0:01:31]} 19. Rae1 {[%clk 0:00:07]}  Ne5 {[%clk 0:01:29]} 20. Bd3 {[%clk 0:00:00]}  Nf3+ {[%clk 0:01:27]} 0-1


[Site "https://www.chess.com"]

[Event "Titled Tuesday Blitz August 22 Early 2023"]
[White "Ilamparthi A R"]
[Black "Zheng, Richard"]
[WhiteFideId "45015775"]
[BlackFideId "2624893"]
[WhiteElo "2873"]
[BlackElo "2574"]
[Result "1-0"]
[Round "4"]
[TimeControl "180+1"]
[Date "2023.08.22"]
[WhiteClock "0:01:57"]
[BlackClock "0:01:23"]
[Board "49"]

1. e4 {[%clk 0:03:00]}  c6 {[%clk 0:03:00]} 2. d3 {[%clk 0:03:00]}  d5 {[%clk 0:03:01]} 3. Nd2 {[%clk 0:03:00]}  e5 {[%clk 0:03:01]} 4. Ngf3 {[%clk 0:03:00]}  Bd6 {[%clk 0:03:02]} 5. d4 {[%clk 0:03:01]}  exd4 {[%clk 0:03:00]} 6. exd5 {[%clk 0:03:01]}  cxd5 {[%clk 0:03:01]} 7. Nxd4 {[%clk 0:03:01]}  Nf6 {[%clk 0:03:01]} 8. Bb5+ {[%clk 0:03:01]}  Bd7 {[%clk 0:03:01]} 9. Qe2+ {[%clk 0:03:00]}  Qe7 {[%clk 0:03:01]} 10. Bxd7+ {[%clk 0:02:52]}  Nbxd7 {[%clk 0:03:00]} 11. Nf5 {[%clk 0:02:53]}  Qxe2+ {[%clk 0:02:58]} 12. Kxe2 {[%clk 0:02:54]}  Bf8 {[%clk 0:02:58]} 13. Re1 {[%clk 0:02:54]}  O-O-O {[%clk 0:02:55]} 14. Kf1 {[%clk 0:02:54]}  g6 {[%clk 0:02:50]} 15. Ne7+ {[%clk 0:02:54]}  Kb8 {[%clk 0:02:36]} 16. Nf3 {[%clk 0:02:46]}  Re8 {[%clk 0:02:23]} 17. Bf4+ {[%clk 0:02:35]}  Ka8 {[%clk 0:02:23]} 18. Nxd5 {[%clk 0:02:36]}  Rxe1+ {[%clk 0:02:04]} 19. Rxe1 {[%clk 0:02:37]}  b6 {[%clk 0:01:59]} 20. Nxf6 {[%clk 0:02:29]}  Nxf6 {[%clk 0:02:00]} 21. Be5 {[%clk 0:02:25]}  Bg7 {[%clk 0:01:58]} 22. Ng5 {[%clk 0:02:23]}  Rc8 {[%clk 0:01:56]} 23. c3 {[%clk 0:02:19]}  Rd8 {[%clk 0:01:45]} 24. Nxf7 {[%clk 0:02:06]}  Rd2 {[%clk 0:01:45]} 25. c4 {[%clk 0:02:05]}  Rc2 {[%clk 0:01:32]} 26. Bc3 {[%clk 0:02:03]}  Kb7 {[%clk 0:01:28]} 27. Nd6+ {[%clk 0:02:01]}  Kc6 {[%clk 0:01:28]} 28. Nb5 {[%clk 0:01:57]}  a6 {[%clk 0:01:23]} 1-0


[Site "https://www.chess.com"]

[Event "Titled Tuesday Blitz August 22 Early 2023"]
[White "Bacrot, Etienne"]
[Black "Goltseva, Ekaterina"]
[WhiteFideId "605506"]
[BlackFideId "24173770"]
[WhiteElo "2835"]
[BlackElo "2568"]
[Result "1-0"]
[Round "4"]
[TimeControl "180+1"]
[Date "2023.08.22"]
[WhiteClock "0:01:07"]
[BlackClock "0:00:00"]
[Board "55"]

1. e4 {[%clk 0:03:00]}  c5 {[%clk 0:02:58]} 2. Nf3 {[%clk 0:03:00]}  Nf6 {[%clk 0:02:58]} 3. e5 {[%clk 0:03:00]}  Nd5 {[%clk 0:02:58]} 4. Nc3 {[%clk 0:03:01]}  e6 {[%clk 0:02:58]} 5. g3 {[%clk 0:03:01]}  Nc6 {[%clk 0:02:55]} 6. Bg2 {[%clk 0:03:01]}  d6 {[%clk 0:02:53]} 7. exd6 {[%clk 0:03:00]}  Bxd6 {[%clk 0:02:52]} 8. O-O {[%clk 0:03:00]}  Nxc3 {[%clk 0:02:49]} 9. bxc3 {[%clk 0:03:01]}  O-O {[%clk 0:02:49]} 10. d4 {[%clk 0:02:59]}  Qa5 {[%clk 0:02:41]} 11. Qd3 {[%clk 0:02:51]}  h6 {[%clk 0:02:32]} 12. Rd1 {[%clk 0:02:47]}  Rd8 {[%clk 0:02:22]} 13. Bd2 {[%clk 0:02:40]}  Qc7 {[%clk 0:02:11]} 14. Qe4 {[%clk 0:02:28]}  Bd7 {[%clk 0:01:51]} 15. Rab1 {[%clk 0:02:10]}  Rab8 {[%clk 0:01:48]} 16. dxc5 {[%clk 0:02:05]}  Bxc5 {[%clk 0:01:34]} 17. Bf4 {[%clk 0:02:05]}  Qc8 {[%clk 0:00:54]} 18. Bxb8 {[%clk 0:02:02]}  Qxb8 {[%clk 0:00:55]} 19. Nd4 {[%clk 0:01:41]}  Na5 {[%clk 0:00:47]} 20. Nb3 {[%clk 0:01:35]}  Bc6 {[%clk 0:00:38]} 21. Qe2 {[%clk 0:01:13]}  Rxd1+ {[%clk 0:00:18]} 22. Rxd1 {[%clk 0:01:12]}  Bb6 {[%clk 0:00:17]} 23. Nxa5 {[%clk 0:01:11]}  Bxa5 {[%clk 0:00:18]} 24. Bxc6 {[%clk 0:01:11]}  bxc6 {[%clk 0:00:18]} 25. Qc4 {[%clk 0:01:12]}  Qb6 {[%clk 0:00:14]} 26. Kg2 {[%clk 0:01:11]}  Qb2 {[%clk 0:00:11]} 27. Qb3 {[%clk 0:01:09]}  Qxc3 {[%clk 0:00:10]} 28. Qxc3 {[%clk 0:01:09]}  Bxc3 {[%clk 0:00:11]} 29. Rd8+ {[%clk 0:01:09]}  Kh7 {[%clk 0:00:11]} 30. Rc8 {[%clk 0:01:10]}  e5 {[%clk 0:00:06]} 31. Rxc6 {[%clk 0:01:09]}  Bd4 {[%clk 0:00:07]} 32. c3 {[%clk 0:01:09]}  Bb6 {[%clk 0:00:07]} 33. a4 {[%clk 0:01:10]}  f6 {[%clk 0:00:03]} 34. c4 {[%clk 0:01:10]}  Kg6 {[%clk 0:00:03]} 35. Rxb6 {[%clk 0:01:06]}  axb6 {[%clk 0:00:02]} 36. c5 {[%clk 0:01:07]}  bxc5 {[%clk 0:00:02]} 37. a5 {[%clk 0:01:07]}  c4 {[%clk 0:00:00]} 38. Kf1 {[%clk 0:01:07]} 1-0


[Site "https://www.chess.com"]

[Event "Titled Tuesday Blitz August 22 Early 2023"]
[White "maksimys18"]
[Black "Vakhlamov, Igor L."]
[BlackFideId "24126748"]
[WhiteElo "2567"]
[BlackElo "2798"]
[Result "0-1"]
[Round "4"]
[TimeControl "180+1"]
[Date "2023.08.22"]
[WhiteClock "0:00:20"]
[BlackClock "0:00:12"]
[Board "56"]

1. d4 {[%clk 0:02:59]}  d5 {[%clk 0:02:59]} 2. Nf3 {[%clk 0:02:59]}  Nf6 {[%clk 0:02:59]} 3. c4 {[%clk 0:02:59]}  e6 {[%clk 0:02:59]} 4. Nc3 {[%clk 0:02:59]}  c5 {[%clk 0:03:00]} 5. Bg5 {[%clk 0:02:58]}  cxd4 {[%clk 0:02:59]} 6. Nxd4 {[%clk 0:02:59]}  e5 {[%clk 0:02:59]} 7. Ndb5 {[%clk 0:02:59]}  a6 {[%clk 0:02:56]} 8. Qa4 {[%clk 0:02:58]}  Bd7 {[%clk 0:02:38]} 9. Rd1 {[%clk 0:02:52]}  d4 {[%clk 0:01:50]} 10. Ne4 {[%clk 0:02:35]}  Bc6 {[%clk 0:01:30]} 11. e3 {[%clk 0:02:04]}  axb5 {[%clk 0:01:16]} 12. Qxa8 {[%clk 0:01:59]}  Bxe4 {[%clk 0:01:16]} 13. exd4 {[%clk 0:01:58]}  exd4 {[%clk 0:01:00]} 14. Be2 {[%clk 0:01:46]}  Bb4+ {[%clk 0:00:58]} 15. Bd2 {[%clk 0:01:46]}  Bxd2+ {[%clk 0:00:58]} 16. Rxd2 {[%clk 0:01:47]}  O-O {[%clk 0:00:50]} 17. f3 {[%clk 0:01:44]}  Bg6 {[%clk 0:00:26]} 18. O-O {[%clk 0:01:40]}  bxc4 {[%clk 0:00:24]} 19. Bxc4 {[%clk 0:01:37]}  Qb6 {[%clk 0:00:25]} 20. Qa3 {[%clk 0:01:34]}  Nc6 {[%clk 0:00:25]} 21. b3 {[%clk 0:01:31]}  Ne5 {[%clk 0:00:24]} 22. Rfd1 {[%clk 0:01:25]}  Nxc4 {[%clk 0:00:24]} 23. bxc4 {[%clk 0:01:25]}  d3+ {[%clk 0:00:25]} 24. c5 {[%clk 0:01:18]}  Qe6 {[%clk 0:00:25]} 25. Qc3 {[%clk 0:01:13]}  h5 {[%clk 0:00:24]} 26. h4 {[%clk 0:01:12]}  Re8 {[%clk 0:00:23]} 27. a4 {[%clk 0:01:08]}  Qe3+ {[%clk 0:00:23]} 28. Kh1 {[%clk 0:01:04]}  Qf4 {[%clk 0:00:22]} 29. c6 {[%clk 0:01:02]}  bxc6 {[%clk 0:00:17]} 30. a5 {[%clk 0:01:02]}  Qxh4+ {[%clk 0:00:17]} 31. Kg1 {[%clk 0:01:02]}  Nd5 {[%clk 0:00:15]} 32. Qa1 {[%clk 0:00:53]}  Nf4 {[%clk 0:00:12]} 33. a6 {[%clk 0:00:38]}  Ne2+ {[%clk 0:00:13]} 34. Kf1 {[%clk 0:00:38]}  Qh2 {[%clk 0:00:14]} 35. Kf2 {[%clk 0:00:33]}  Qg3+ {[%clk 0:00:14]} 36. Kf1 {[%clk 0:00:33]}  Qh2 {[%clk 0:00:14]} 37. Kf2 {[%clk 0:00:33]}  Qc7 {[%clk 0:00:15]} 38. Rh1 {[%clk 0:00:20]}  Qb6+ {[%clk 0:00:14]} 39. Kf1 {[%clk 0:00:20]}  Ng3# {[%clk 0:00:12]} 0-1


[Site "https://www.chess.com"]